Workbook

Sheet Calmar Ratio
A1: Maximum Drawdown
A3: S&P500 Adjusted Close | F3: Results
A4: Date | B4: Close | D4: Daily Return | F4: Open | G4: =B5 -> 876.77
A5: 2008-10-24 | B5: 876.77 | C5: 0 | F5: Close | G5: =B760 -> 1254.19
A6: 2008-10-27 | B6: 848.92 | C6: =B6/MAX($B$5:B5)-1 -> -0.03176431675 | D6: =LN(B6/B5) -> -0.03227974691 | F6: Three Year Return | G6: =+G5/G4-1 -> 0.4304663709
A7: 2008-10-28 | B7: 940.51 | C7: =B7/MAX($B$5:B6)-1 -> 0.07269865529 | D7: =LN(B7/B6) -> 0.102457328 | F7: Annualized Return | G7: =(1+G6)^(252/756)-1 -> 0.1267456345 | I7: Assuming 252 trading days a year
A8: 2008-10-29 | B8: 930.09 | C8: =B8/MAX($B$5:B7)-1 -> -0.01107909538 | D8: -0.01114092567 | F8: Maximum Drawdown | G8: =MaxDrawDown(B5:B760) -> -0.3273378076
A9: 2008-10-30 | B9: 954.09 | C9: =B9/MAX($B$5:B8)-1 -> 0.0144389746 | D9: 0.02547665096 | F9: Calmar Ratio | G9: =G7/ABS(G8) -> 0.3872013302
A10: 2008-10-31 | B10: 968.75 | C10: =B10/MAX($B$5:B9)-1 -> 0.01536542674 | D10: 0.01524857405 | G10: =MIN(C5:C761) -> -0.3273378076
A11: 2008-11-03 | B11: 966.3 | C11: =B11/MAX($B$5:B10)-1 -> -0.002529032258 | D11: -0.002532235662
A12: 2008-11-04 | B12: 1005.75 | C12: =B12/MAX($B$5:B11)-1 -> 0.03819354839 | D12: 0.04001446582
A13: 2008-11-05 | B13: 952.77 | C13: =B13/MAX($B$5:B12)-1 -> -0.05267710664 | D13: -0.05411527943
A14: 2008-11-06 | B14: 904.88 | C14: =B14/MAX($B$5:B13)-1 -> -0.1002933134 | D14: -0.05157119318
A15: 2008-11-07 | B15: 930.99 | C15: =B15/MAX($B$5:B14)-1 -> -0.07433258762 | D15: 0.02844619786
A16: 2008-11-10 | B16: 919.21 | C16: =B16/MAX($B$5:B15)-1 -> -0.08604523987 | D16: -0.01273393058
A17: 2008-11-11 | B17: 898.95 | C17: =B17/MAX($B$5:B16)-1 -> -0.1061894109 | D17: -0.02228718993
A18: 2008-11-12 | B18: 852.3 | C18: =B18/MAX($B$5:B17)-1 -> -0.1525727069 | D18: -0.05328883804
A19: 2008-11-13 | B19: 911.29 | C19: =B19/MAX($B$5:B18)-1 -> -0.09391996023 | D19: 0.06692260058
A20: 2008-11-14 | B20: 873.29 | C20: =B20/MAX($B$5:B19)-1 -> -0.1317027094 | D20: -0.04259348957
A21: 2008-11-17 | B21: 850.75 | C21: =B21/MAX($B$5:B20)-1 -> -0.1541138454 | D21: -0.02614937515
A22: 2008-11-18 | B22: 859.12 | C22: =B22/MAX($B$5:B21)-1 -> -0.1457916977 | D22: 0.009790296169
A23: 2008-11-19 | B23: 806.58 | C23: =B23/MAX($B$5:B22)-1 -> -0.1980313199 | D23: -0.06310552286
A24: 2008-11-20 | B24: 752.44 | C24: =B24/MAX($B$5:B23)-1 -> -0.2518617947 | D24: -0.06948182747
A25: 2008-11-21 | B25: 800.03 | C25: =B25/MAX($B$5:B24)-1 -> -0.2045438727 | D25: 0.06132796774
A26: 2008-11-24 | B26: 851.81 | C26: =B26/MAX($B$5:B25)-1 -> -0.1530599055 | D26: 0.0627142703
A27: 2008-11-25 | B27: 857.39 | C27: =B27/MAX($B$5:B26)-1 -> -0.1475118071 | D27: 0.006529393663
A28: 2008-11-26 | B28: 887.68 | C28: =B28/MAX($B$5:B27)-1 -> -0.1173949789 | D28: 0.03471842676
A29: 2008-11-28 | B29: 896.24 | C29: =B29/MAX($B$5:B28)-1 -> -0.1088839175 | D29: 0.009596916564
A30: 2008-12-01 | B30: 816.21 | C30: =B30/MAX($B$5:B29)-1 -> -0.1884563758 | D30: -0.09353655945
A31: 2008-12-02 | B31: 848.81 | C31: =B31/MAX($B$5:B30)-1 -> -0.1560427542 | D31: 0.03916369377
A32: 2008-12-03 | B32: 870.74 | C32: =B32/MAX($B$5:B31)-1 -> -0.1342381307 | D32: 0.02550805626
A33: 2008-12-04 | B33: 845.22 | C33: =B33/MAX($B$5:B32)-1 -> -0.1596122297 | D33: -0.02974647633
A34: 2008-12-05 | B34: 876.07 | C34: =B34/MAX($B$5:B33)-1 -> -0.128938603 | D34: 0.03584904792
A35: 2008-12-08 | B35: 909.7 | C35: =B35/MAX($B$5:B34)-1 -> -0.09550087 | D35: 0.03766887841
A36: 2008-12-09 | B36: 888.67 | C36: =B36/MAX($B$5:B35)-1 -> -0.1164106388 | D36: -0.02338891183
A37: 2008-12-10 | B37: 899.24 | C37: =B37/MAX($B$5:B36)-1 -> -0.1059010689 | D37: 0.01182399913
A38: 2008-12-11 | B38: 873.59 | C38: =B38/MAX($B$5:B37)-1 -> -0.1314044246 | D38: -0.0289388041
A39: 2008-12-12 | B39: 879.73 | C39: =B39/MAX($B$5:B38)-1 -> -0.1252995277 | D39: 0.007003884173
A40: 2008-12-15 | B40: 868.57 | C40: =B40/MAX($B$5:B39)-1 -> -0.1363957246 | D40: -0.01276686105
A41: 2008-12-16 | B41: 913.18 | C41: =B41/MAX($B$5:B40)-1 -> -0.0920407656 | D41: 0.05008483224
A42: 2008-12-17 | B42: 904.42 | C42: =B42/MAX($B$5:B41)-1 -> -0.1007506836 | D42: -0.00963915914
A43: 2008-12-18 | B43: 885.28 | C43: =B43/MAX($B$5:B42)-1 -> -0.1197812578 | D43: -0.02138987512
A44: 2008-12-19 | B44: 887.88 | C44: =B44/MAX($B$5:B43)-1 -> -0.1171961223 | D44: 0.002932619576
A45: 2008-12-22 | B45: 871.63 | C45: =B45/MAX($B$5:B44)-1 -> -0.133353219 | D45: -0.01847157679
A46: 2008-12-23 | B46: 863.16 | C46: =B46/MAX($B$5:B45)-1 -> -0.1417747949 | D46: -0.009764948269
A47: 2008-12-24 | B47: 868.15 | C47: =B47/MAX($B$5:B46)-1 -> -0.1368133234 | D47: 0.005764437123
A48: 2008-12-26 | B48: 872.8 | C48: =B48/MAX($B$5:B47)-1 -> -0.132189908 | D48: 0.005341923729
A49: 2008-12-29 | B49: 869.42 | C49: =B49/MAX($B$5:B48)-1 -> -0.1355505841 | D49: -0.003880111858
A50: 2008-12-30 | B50: 890.64 | C50: =B50/MAX($B$5:B49)-1 -> -0.1144519016 | D50: 0.02411398276
A51: 2008-12-31 | B51: 903.25 | C51: =B51/MAX($B$5:B50)-1 -> -0.1019139945 | D51: 0.01405906461
A52: 2009-01-02 | B52: 931.8 | C52: =B52/MAX($B$5:B51)-1 -> -0.07352721849 | D52: 0.03111882935
A53: 2009-01-05 | B53: 927.45 | C53: =B53/MAX($B$5:B52)-1 -> -0.07785234899 | D53: -0.00467931471
A54: 2009-01-06 | B54: 934.7 | C54: =B54/MAX($B$5:B53)-1 -> -0.07064379816 | D54: 0.007786737516
A55: 2009-01-07 | B55: 906.65 | C55: =B55/MAX($B$5:B54)-1 -> -0.09853343276 | D55: -0.03046913409
A56: 2009-01-08 | B56: 909.73 | C56: =B56/MAX($B$5:B55)-1 -> -0.09547104151 | D56: 0.003391364089
A57: 2009-01-09 | B57: 890.35 | C57: =B57/MAX($B$5:B56)-1 -> -0.1147402436 | D57: -0.02153320834
A58: 2009-01-12 | B58: 870.26 | C58: =B58/MAX($B$5:B57)-1 -> -0.1347153865 | D58: -0.02282262627
A59: 2009-01-13 | B59: 871.79 | C59: =B59/MAX($B$5:B58)-1 -> -0.1331941337 | D59: 0.001756551641
A60: 2009-01-14 | B60: 842.62 | C60: =B60/MAX($B$5:B59)-1 -> -0.1621973652 | D60: -0.0340324839
A61: 2009-01-15 | B61: 843.74 | C61: =B61/MAX($B$5:B60)-1 -> -0.1610837683 | D61: 0.001328304946
A62: 2009-01-16 | B62: 850.12 | C62: =B62/MAX($B$5:B61)-1 -> -0.1547402436 | D62: 0.007533125726
A63: 2009-01-20 | B63: 805.22 | C63: =B63/MAX($B$5:B62)-1 -> -0.1993835446 | D63: -0.05426198398
A64: 2009-01-21 | B64: 840.24 | C64: =B64/MAX($B$5:B63)-1 -> -0.1645637584 | D64: 0.04257203331
A65: 2009-01-22 | B65: 827.5 | C65: =B65/MAX($B$5:B64)-1 -> -0.1772309222 | D65: -0.01527845806
A66: 2009-01-23 | B66: 831.95 | C66: =B66/MAX($B$5:B65)-1 -> -0.1728063634 | D66: 0.00536323561
A67: 2009-01-26 | B67: 836.57 | C67: =B67/MAX($B$5:B66)-1 -> -0.1682127765 | D67: 0.005537856073
A68: 2009-01-27 | B68: 845.71 | C68: =B68/MAX($B$5:B67)-1 -> -0.1591250311 | D68: 0.01086631231
A69: 2009-01-28 | B69: 874.09 | C69: =B69/MAX($B$5:B68)-1 -> -0.1309072831 | D69: 0.03300683394
A70: 2009-01-29 | B70: 845.14 | C70: =B70/MAX($B$5:B69)-1 -> -0.1596917723 | D70: -0.03368105108
A71: 2009-01-30 | B71: 825.88 | C71: =B71/MAX($B$5:B70)-1 -> -0.1788416605 | D71: =LN(B71/B70) -> -0.02305280959
A72: 2009-02-02 | B72: 825.44 | C72: =B72/MAX($B$5:B71)-1 -> -0.1792791449 | D72: -0.0005329070203
A73: 2009-02-03 | B73: 838.51 | C73: =B73/MAX($B$5:B72)-1 -> -0.1662838678 | D73: 0.01570992975
A74: 2009-02-04 | B74: 832.23 | C74: =B74/MAX($B$5:B73)-1 -> -0.1725279642 | D74: -0.007517662325
A75: 2009-02-05 | B75: 845.85 | C75: =B75/MAX($B$5:B74)-1 -> -0.1589858315 | D75: 0.016233194
A76: 2009-02-06 | B76: 868.6 | C76: =B76/MAX($B$5:B75)-1 -> -0.1363658961 | D76: 0.02654068118
A77: 2009-02-09 | B77: 869.89 | C77: =B77/MAX($B$5:B76)-1 -> -0.1350832712 | D77: 0.001484046772
A78: 2009-02-10 | B78: 827.16 | C78: =B78/MAX($B$5:B77)-1 -> -0.1775689784 | D78: -0.05036862019
A79: 2009-02-11 | B79: 833.74 | C79: =B79/MAX($B$5:B78)-1 -> -0.1710265971 | D79: 0.007923456469
A80: 2009-02-12 | B80: 835.19 | C80: =B80/MAX($B$5:B79)-1 -> -0.1695848869 | D80: 0.001737640722
A81: 2009-02-13 | B81: 826.84 | C81: =B81/MAX($B$5:B80)-1 -> -0.1778871489 | D81: -0.01004803795
A82: 2009-02-17 | B82: 789.17 | C82: =B82/MAX($B$5:B81)-1 -> -0.2153417847 | D82: -0.04662944568
A83: 2009-02-18 | B83: 788.42 | C83: =B83/MAX($B$5:B82)-1 -> -0.2160874969 | D83: -0.0009508174576
A84: 2009-02-19 | B84: 778.94 | C84: =B84/MAX($B$5:B83)-1 -> -0.2255132985 | D84: -0.01209692171
A85: 2009-02-20 | B85: 770.05 | C85: =B85/MAX($B$5:B84)-1 -> -0.2343524733 | D85: -0.01147857328
A86: 2009-02-23 | B86: 743.33 | C86: =B86/MAX($B$5:B85)-1 -> -0.2609197117 | D86: -0.03531535633
A87: 2009-02-24 | B87: 773.14 | C87: =B87/MAX($B$5:B86)-1 -> -0.2312801392 | D87: 0.03932005327
A88: 2009-02-25 | B88: 764.9 | C88: =B88/MAX($B$5:B87)-1 -> -0.2394730301 | D88: -0.01071503841
A89: 2009-02-26 | B89: 752.83 | C89: =B89/MAX($B$5:B88)-1 -> -0.2514740244 | D89: -0.01590566763
A90: 2009-02-27 | B90: 735.09 | C90: =B90/MAX($B$5:B89)-1 -> -0.2691126025 | D90: -0.023846498
A91: 2009-03-02 | B91: 700.82 | C91: =B91/MAX($B$5:B90)-1 -> -0.3031866766 | D91: -0.04774186267
A92: 2009-03-03 | B92: 696.33 | C92: =B92/MAX($B$5:B91)-1 -> -0.3076510067 | D92: -0.00642739213
A93: 2009-03-04 | B93: 712.87 | C93: =B93/MAX($B$5:B92)-1 -> -0.291205568 | D93: 0.0234753897
A94: 2009-03-05 | B94: 682.55 | C94: =B94/MAX($B$5:B93)-1 -> -0.3213522247 | D94: -0.04346329115
A95: 2009-03-06 | B95: 683.38 | C95: =B95/MAX($B$5:B94)-1 -> -0.3205269699 | D95: 0.001215289366
A96: 2009-03-09 | B96: 676.53 | C96: =B96/MAX($B$5:B95)-1 -> -0.3273378076 | D96: -0.01007428129
A97: 2009-03-10 | B97: 719.6 | C97: =B97/MAX($B$5:B96)-1 -> -0.2845140442 | D97: 0.06171870955
A98: 2009-03-11 | B98: 721.36 | C98: =B98/MAX($B$5:B97)-1 -> -0.2827641064 | D98: 0.002442817115
A99: 2009-03-12 | B99: 750.74 | C99: =B99/MAX($B$5:B98)-1 -> -0.2535520756 | D99: 0.03992106757
A100: 2009-03-13 | B100: 756.55 | C100: =B100/MAX($B$5:B99)-1 -> -0.2477752921 | D100: 0.007709238136
A101: 2009-03-16 | B101: 753.89 | C101: =B101/MAX($B$5:B100)-1 -> -0.2504200845 | D101: -0.003522156127
A102: 2009-03-17 | B102: 778.12 | C102: =B102/MAX($B$5:B101)-1 -> -0.2263286105 | D102: 0.03163428516
A103: 2009-03-18 | B103: 794.35 | C103: =B103/MAX($B$5:B102)-1 -> -0.2101913995 | D103: 0.02064341624
A104: 2009-03-19 | B104: 784.04 | C104: =B104/MAX($B$5:B103)-1 -> -0.2204424559 | D104: -0.01306413071
A105: 2009-03-20 | B105: 768.54 | C105: =B105/MAX($B$5:B104)-1 -> -0.2358538404 | D105: -0.01996742839
A106: 2009-03-23 | B106: 822.92 | C106: =B106/MAX($B$5:B105)-1 -> -0.1817847378 | D106: 0.06836637953
A107: 2009-03-24 | B107: 806.12 | C107: =B107/MAX($B$5:B106)-1 -> -0.19848869 | D107: -0.02062637581
A108: 2009-03-25 | B108: 813.88 | C108: =B108/MAX($B$5:B107)-1 -> -0.1907730549 | D108: 0.009580320188
A109: 2009-03-26 | B109: 832.86 | C109: =B109/MAX($B$5:B108)-1 -> -0.171901566 | D109: 0.02305262583
A110: 2009-03-27 | B110: 815.94 | C110: =B110/MAX($B$5:B109)-1 -> -0.1887248322 | D110: -0.02052473797
A111: 2009-03-30 | B111: 787.53 | C111: =B111/MAX($B$5:B110)-1 -> -0.2169724087 | D111: -0.03543935764
A112: 2009-03-31 | B112: 797.87 | C112: =B112/MAX($B$5:B111)-1 -> -0.2066915237 | D112: 0.0130442117
A113: 2009-04-01 | B113: 811.08 | C113: =B113/MAX($B$5:B112)-1 -> -0.193557047 | D113: 0.01642101599
A114: 2009-04-02 | B114: 834.38 | C114: =B114/MAX($B$5:B113)-1 -> -0.170390256 | D114: 0.02832224118
A115: 2009-04-03 | B115: 842.5 | C115: =B115/MAX($B$5:B114)-1 -> -0.1623166791 | D115: 0.009684728146
A116: 2009-04-06 | B116: 835.48 | C116: =B116/MAX($B$5:B115)-1 -> -0.1692965449 | D116: -0.008367252239
A117: 2009-04-07 | B117: 815.55 | C117: =B117/MAX($B$5:B116)-1 -> -0.1891126025 | D117: -0.02414367773
A118: 2009-04-08 | B118: 825.16 | C118: =B118/MAX($B$5:B117)-1 -> -0.1795575441 | D118: 0.01171457466
A119: 2009-04-09 | B119: 856.56 | C119: =B119/MAX($B$5:B118)-1 -> -0.1483370619 | D119: 0.03734706093
A120: 2009-04-13 | B120: 858.73 | C120: =B120/MAX($B$5:B119)-1 -> -0.1461794681 | D120: 0.00253018575
A121: 2009-04-14 | B121: 841.5 | C121: =B121/MAX($B$5:B120)-1 -> -0.163310962 | D121: -0.02026853997
A122: 2009-04-15 | B122: 852.06 | C122: =B122/MAX($B$5:B121)-1 -> -0.1528113348 | D122: 0.01247093325
A123: 2009-04-16 | B123: 865.3 | C123: =B123/MAX($B$5:B122)-1 -> -0.1396470296 | D123: 0.01541932073
A124: 2009-04-17 | B124: 869.6 | C124: =B124/MAX($B$5:B123)-1 -> -0.1353716132 | D124: 0.004957068194
A125: 2009-04-20 | B125: 832.39 | C125: =B125/MAX($B$5:B124)-1 -> -0.1723688789 | D125: -0.04373225481
A126: 2009-04-21 | B126: 850.08 | C126: =B126/MAX($B$5:B125)-1 -> -0.1547800149 | D126: 0.02102938171
A127: 2009-04-22 | B127: 843.55 | C127: =B127/MAX($B$5:B126)-1 -> -0.1612726821 | D127: -0.007711285651
A128: 2009-04-23 | B128: 851.92 | C128: =B128/MAX($B$5:B127)-1 -> -0.1529505344 | D128: 0.009873448655
A129: 2009-04-24 | B129: 866.23 | C129: =B129/MAX($B$5:B128)-1 -> -0.1387223465 | D129: 0.01665783651
A130: 2009-04-27 | B130: 857.51 | C130: =B130/MAX($B$5:B129)-1 -> -0.1473924932 | D130: -0.01011762143
A131: 2009-04-28 | B131: 855.16 | C131: =B131/MAX($B$5:B130)-1 -> -0.1497290579 | D131: -0.002744254847
A132: 2009-04-29 | B132: 873.64 | C132: =B132/MAX($B$5:B131)-1 -> -0.1313547104 | D132: 0.02137980556
A133: 2009-04-30 | B133: 872.81 | C133: =B133/MAX($B$5:B132)-1 -> -0.1321799652 | D133: -0.0009504996564
A134: 2009-05-01 | B134: 877.52 | C134: =B134/MAX($B$5:B133)-1 -> -0.1274968929 | D134: 0.005381855271
A135: 2009-05-04 | B135: 907.24 | C135: =B135/MAX($B$5:B134)-1 -> -0.09794680587 | D135: =LN(B135/B134) -> 0.03330727661
A136: 2009-05-05 | B136: 903.8 | C136: =B136/MAX($B$5:B135)-1 -> -0.101367139 | D136: -0.003798926735
A137: 2009-05-06 | B137: 919.53 | C137: =B137/MAX($B$5:B136)-1 -> -0.08572706935 | D137: 0.01725457296
A138: 2009-05-07 | B138: 907.39 | C138: =B138/MAX($B$5:B137)-1 -> -0.09779766344 | D138: -0.01329032327
A139: 2009-05-08 | B139: 929.23 | C139: =B139/MAX($B$5:B138)-1 -> -0.07608252548 | D139: 0.02378393954
A140: 2009-05-11 | B140: 909.24 | C140: =B140/MAX($B$5:B139)-1 -> -0.09595824012 | D140: -0.02174720048
A141: 2009-05-12 | B141: 908.35 | C141: =B141/MAX($B$5:B140)-1 -> -0.09684315188 | D141: -0.0009793188465
A142: 2009-05-13 | B142: 883.92 | C142: =B142/MAX($B$5:B141)-1 -> -0.1211334825 | D142: -0.02726320608
A143: 2009-05-14 | B143: 893.07 | C143: =B143/MAX($B$5:B142)-1 -> -0.1120357942 | D143: 0.01029840446
A144: 2009-05-15 | B144: 882.88 | C144: =B144/MAX($B$5:B143)-1 -> -0.1221675367 | D144: -0.01147567423
A145: 2009-05-18 | B145: 909.71 | C145: =B145/MAX($B$5:B144)-1 -> -0.09549092717 | D145: 0.02993657637
A146: 2009-05-19 | B146: 908.13 | C146: =B146/MAX($B$5:B145)-1 -> -0.09706189411 | D146: -0.001738327243
A147: 2009-05-20 | B147: 903.47 | C147: =B147/MAX($B$5:B146)-1 -> -0.1016952523 | D147: -0.005144634884
A148: 2009-05-21 | B148: 888.33 | C148: =B148/MAX($B$5:B147)-1 -> -0.116748695 | D148: -0.0168996097
A149: 2009-05-22 | B149: 887 | C149: =B149/MAX($B$5:B148)-1 -> -0.1180710912 | D149: -0.00149831327
A150: 2009-05-26 | B150: 910.33 | C150: =B150/MAX($B$5:B149)-1 -> -0.09487447179 | D150: 0.02596218883
A151: 2009-05-27 | B151: 893.06 | C151: =B151/MAX($B$5:B150)-1 -> -0.112045737 | D151: -0.01915340327
A152: 2009-05-28 | B152: 906.83 | C152: =B152/MAX($B$5:B151)-1 -> -0.09835446184 | D152: 0.01530123359
A153: 2009-05-29 | B153: 919.14 | C153: =B153/MAX($B$5:B152)-1 -> -0.08611483967 | D153: 0.0134834488
A154: 2009-06-01 | B154: 942.87 | C154: =B154/MAX($B$5:B153)-1 -> -0.06252050708 | D154: 0.02548996498
A155: 2009-06-02 | B155: 944.74 | C155: =B155/MAX($B$5:B154)-1 -> -0.06066119811 | D155: 0.001981342133
A156: 2009-06-03 | B156: 931.76 | C156: =B156/MAX($B$5:B155)-1 -> -0.07356698981 | D156: -0.01383448657
A157: 2009-06-04 | B157: 942.46 | C157: =B157/MAX($B$5:B156)-1 -> -0.06292816306 | D157: 0.01141820731
A158: 2009-06-05 | B158: 940.09 | C158: =B158/MAX($B$5:B157)-1 -> -0.06528461347 | D158: -0.002517862742
A159: 2009-06-08 | B159: 939.14 | C159: =B159/MAX($B$5:B158)-1 -> -0.0662291822 | D159: -0.001011052485
A160: 2009-06-09 | B160: 942.43 | C160: =B160/MAX($B$5:B159)-1 -> -0.06295799155 | D160: 0.003497083131
A161: 2009-06-10 | B161: 939.15 | C161: =B161/MAX($B$5:B160)-1 -> -0.06621923937 | D161: -0.003486435148
A162: 2009-06-11 | B162: 944.89 | C162: =B162/MAX($B$5:B161)-1 -> -0.06051205568 | D162: 0.006093307743
A163: 2009-06-12 | B163: 946.21 | C163: =B163/MAX($B$5:B162)-1 -> -0.05919960229 | D163: 0.001396013129
A164: 2009-06-15 | B164: 923.72 | C164: =B164/MAX($B$5:B163)-1 -> -0.08156102411 | D164: -0.02405553632
A165: 2009-06-16 | B165: 911.97 | C165: =B165/MAX($B$5:B164)-1 -> -0.09324384787 | D165: -0.01280190062
A166: 2009-06-17 | B166: 910.71 | C166: =B166/MAX($B$5:B165)-1 -> -0.0944966443 | D166: -0.001382579719
A167: 2009-06-18 | B167: 918.37 | C167: =B167/MAX($B$5:B166)-1 -> -0.08688043748 | D167: 0.008375844449
A168: 2009-06-19 | B168: 921.23 | C168: =B168/MAX($B$5:B167)-1 -> -0.08403678847 | D168: 0.003109374108
A169: 2009-06-22 | B169: 893.04 | C169: =B169/MAX($B$5:B168)-1 -> -0.1120656227 | D169: -0.03107836093
A170: 2009-06-23 | B170: 895.1 | C170: =B170/MAX($B$5:B169)-1 -> -0.1100174 | D170: 0.00230407117
A171: 2009-06-24 | B171: 900.94 | C171: =B171/MAX($B$5:B170)-1 -> -0.104210788 | D171: 0.006503218839
A172: 2009-06-25 | B172: 920.26 | C172: =B172/MAX($B$5:B171)-1 -> -0.08500124285 | D172: 0.0212175761
A173: 2009-06-26 | B173: 918.9 | C173: =B173/MAX($B$5:B172)-1 -> -0.08635346756 | D173: -0.001478936306
A174: 2009-06-29 | B174: 927.23 | C174: =B174/MAX($B$5:B173)-1 -> -0.07807109123 | D174: 0.009024344474
A175: 2009-06-30 | B175: 919.32 | C175: =B175/MAX($B$5:B174)-1 -> -0.08593586875 | D175: -0.008567380664
A176: 2009-07-01 | B176: 923.33 | C176: =B176/MAX($B$5:B175)-1 -> -0.08194879443 | D176: 0.004352434082
A177: 2009-07-02 | B177: 896.42 | C177: =B177/MAX($B$5:B176)-1 -> -0.1087049466 | D177: -0.02957764725
A178: 2009-07-06 | B178: 898.72 | C178: =B178/MAX($B$5:B177)-1 -> -0.1064180959 | D178: 0.002562475638
A179: 2009-07-07 | B179: 881.03 | C179: =B179/MAX($B$5:B178)-1 -> -0.12400696 | D179: -0.01987985121
A180: 2009-07-08 | B180: 879.56 | C180: =B180/MAX($B$5:B179)-1 -> -0.1254685558 | D180: -0.001669895139
A181: 2009-07-09 | B181: 882.68 | C181: =B181/MAX($B$5:B180)-1 -> -0.1223663932 | D181: 0.003540951584
A182: 2009-07-10 | B182: 879.13 | C182: =B182/MAX($B$5:B181)-1 -> -0.1258960974 | D182: -0.00402995193
A183: 2009-07-13 | B183: 901.05 | C183: =B183/MAX($B$5:B182)-1 -> -0.1041014169 | D183: 0.02462796788
A184: 2009-07-14 | B184: 905.84 | C184: =B184/MAX($B$5:B183)-1 -> -0.09933880189 | D184: 0.005301940042
A185: 2009-07-15 | B185: 932.68 | C185: =B185/MAX($B$5:B184)-1 -> -0.07265224957 | D185: 0.02919947238
A186: 2009-07-16 | B186: 940.74 | C186: =B186/MAX($B$5:B185)-1 -> -0.0646383296 | D186: 0.00860463722
A187: 2009-07-17 | B187: 940.38 | C187: =B187/MAX($B$5:B186)-1 -> -0.06499627144 | D187: -0.0003827507064
A188: 2009-07-20 | B188: 951.13 | C188: =B188/MAX($B$5:B187)-1 -> -0.05430773055 | D188: 0.01136670252
A189: 2009-07-21 | B189: 954.58 | C189: =B189/MAX($B$5:B188)-1 -> -0.05087745464 | D189: 0.003620701753
A190: 2009-07-22 | B190: 954.07 | C190: =B190/MAX($B$5:B189)-1 -> -0.0513845389 | D190: -0.0005344091501
A191: 2009-07-23 | B191: 976.29 | C191: =B191/MAX($B$5:B190)-1 -> -0.02929157345 | D191: 0.02302262941
A192: 2009-07-24 | B192: 979.26 | C192: =B192/MAX($B$5:B191)-1 -> -0.02633855332 | D192: 0.003037510965
A193: 2009-07-27 | B193: 982.18 | C193: =B193/MAX($B$5:B192)-1 -> -0.02343524733 | D193: 0.002977406556
A194: 2009-07-28 | B194: 979.62 | C194: =B194/MAX($B$5:B193)-1 -> -0.02598061148 | D194: -0.00260984958
A195: 2009-07-29 | B195: 975.15 | C195: =B195/MAX($B$5:B194)-1 -> -0.03042505593 | D195: -0.004573436048
A196: 2009-07-30 | B196: 986.75 | C196: =B196/MAX($B$5:B195)-1 -> -0.0188913746 | D196: 0.01182540922
A197: 2009-07-31 | B197: 987.48 | C197: =B197/MAX($B$5:B196)-1 -> -0.0181655481 | D197: 0.0007395288627
A198: 2009-08-03 | B198: 1002.63 | C198: =B198/MAX($B$5:B197)-1 -> -0.003102162565 | D198: 0.01522558318
A199: 2009-08-04 | B199: 1005.65 | C199: =B199/MAX($B$5:B198)-1 -> -9.942828735e-05 | D199: =LN(B199/B198) -> 0.003007551015
A200: 2009-08-05 | B200: 1002.72 | C200: =B200/MAX($B$5:B199)-1 -> -0.003012677107 | D200: -0.002917791123
A201: 2009-08-06 | B201: 997.08 | C201: =B201/MAX($B$5:B200)-1 -> -0.008620432513 | D201: -0.005640579011
... 559 more rows
